bitfinex/quotes_ETHUSD_20260209
["timestamp","ask_amount","ask_price","bid_price","bid_amount"]
[1770665939146,0.002,2130.3,2129.5,2.16782908]
[1770665939344,0.002,2131.4,2130.0,2.1675535]
[1770665939650,0.002,2131.4,2130.1,0.99384458]
[1770665940462,0.002,2131.4,2130.0,1.17370892]
[1770665940463,0.05631688,2130.5,2130.0,1.17370892]
[1770665940667,0.05631688,2131.1,2130.0,1.17370892]
[1770665940873,0.05631688,2130.8,2130.0,1.17370892]
[1770665941047,0.05631688,2131.1,2130.0,1.12481457]
[1770665941369,0.05631688,2130.8,2130.0,1.12481457]
[1770665941551,0.05631688,2130.8,2129.6,4.69483568]
[1770665941865,1.17321507,2130.9,2129.6,4.69483568]
[1770665942069,1.22945628,2131.1,2129.6,4.69483568]
[1770665942245,0.05631688,2130.9,2129.6,4.69483568]
[1770665942943,1.23129406,2131.4,2129.7,0.99384458]
[1770665943448,1.17300767,2131.3,2129.8,2.16766371]
[1770665943650,0.002,2131.4,2129.9,0.99384458]
[1770665943860,0.002,2131.4,2130.1,0.99384458]
[1770665944076,0.002,2131.4,2130.2,3.278]
[1770665944460,0.002,2131.4,2130.2,4.27184458]
[1770665945186,0.05631688,2131.1,2129.8,2.16766371]
[1770665945387,0.05631688,2131.1,2129.8,1.17381913]
[1770665945554,1.22945999,2131.1,2129.8,1.17381913]
[1770665945887,0.05631688,2131.1,2129.8,1.17381913]
[1770665946788,1.22934926,2131.3,2129.8,1.17381913]
[1770665947001,0.05631688,2131.1,2129.8,1.17381913]
[1770665947580,1.22934926,2131.3,2129.8,1.17381913]
[1770665947784,4.69384933,2131.4,2129.8,1.17381913]
[1770665947785,0.002,2131.4,2129.9,0.99384458]
[1770665947977,0.002,2131.2,2129.9,0.99384458]
[1770665948292,0.002,2131.2,2130.0,1.22741488]
[1770665948994,0.002,2131.2,2130.2,0.99384458]
[1770665949794,0.002,2131.2,2130.4,0.99384458]
[1770665950009,0.002,2131.2,2130.5,3.279]
[1770665950197,1.17448476,2132.3,2130.6,0.99384458]
[1770665950371,1.17445454,2132.3,2130.7,0.99384458]
[1770665950575,1.23077142,2132.3,2130.7,0.99384458]
[1770665950771,0.002,2132.3,2130.9,0.99384458]
[1770665951569,0.002,2132.3,2131.1,0.99384458]
[1770665952382,0.002,2132.3,2131.2,0.2335703]
[1770665952578,0.002,2132.3,2131.4,0.99384458]
[1770665953596,0.002,2132.3,2131.6,1.17282792]
[1770665953776,4.68769136,2133.3,2131.7,0.2335703]
[1770665953973,4.68769136,2133.3,2131.7,1.22741488]
[1770665954177,1.24505852,2132.9,2131.7,1.22741488]
[1770665954408,1.00263986,2132.8,2131.7,1.22741488]
[1770665954711,1.00263986,2132.7,2131.7,1.22741488]
[1770665954908,1.24505852,2133.1,2131.7,1.22741488]
[1770665955080,1.00171728,2133.0,2131.8,3.278]
[1770665955286,0.05631688,2132.4,2131.6,1.17282792]
[1770665955496,1.00122469,2132.3,2131.6,1.17282792]
[1770665955811,1.17239167,2132.4,2131.4,4.69173495]
[1770665956407,1.001028,2132.3,2131.4,4.69173495]
[1770665956580,1.17239621,2132.4,2131.4,4.69173495]
[1770665956780,1.17236138,2132.5,2131.4,4.69173495]
[1770665956996,1.00080048,2132.4,2131.4,4.69173495]
[1770665957195,1.00080048,2132.3,2131.4,4.69173495]
[1770665957408,1.17236138,2132.5,2131.4,4.69173495]
[1770665957609,1.00180914,2132.4,2131.4,4.69173495]
[1770665957805,1.00180914,2132.3,2131.4,4.69173495]
[1770665958182,2.17425778,2132.3,2131.4,4.69173495]
[1770665958382,1.17244864,2132.3,2131.4,4.69173495]
[1770665959507,1.1723741,2132.5,2131.4,4.69173495]
[1770665959712,2.17378316,2132.4,2131.4,4.69173495]
[1770665959918,1.00134123,2132.3,2131.4,4.69173495]
[1770665960218,0.0012,2132.1,2131.4,4.69173495]
[1770665963631,1.24505852,2132.8,2131.4,16.93753309]
[1770665963781,1.00248318,2132.7,2131.5,5.93463021]
[1770665963986,2.41703808,2133.2,2131.6,1.17282792]
[1770665964285,1.00235345,2133.1,2131.6,2.08017614]
[1770665964587,1.00235345,2133.0,2131.7,0.90734822]
[1770665964788,1.17195291,2133.2,2131.7,0.90734822]
[1770665964988,1.00250646,2133.1,2131.8,0.2335703]
[1770665965182,1.00250646,2133.0,2131.9,3.277]
[1770665965398,1.00246246,2132.9,2131.9,3.277]
[1770665965598,1.01290633,2133.1,2131.9,3.277]
[1770665965924,2.17455365,2133.0,2132.0,1.17260787]
[1770665966092,1.00246645,2132.9,2132.0,1.17260787]
[1770665966279,1.24505852,2133.3,2132.0,1.17260787]
[1770665966483,1.00249806,2133.2,2132.0,1.17260787]
[1770665966709,1.24505852,2133.4,2132.0,1.17260787]
[1770665966916,1.00236232,2133.3,2132.0,2.07995609]
[1770665967221,3.37343342,2133.5,2132.0,2.07995609]
[1770665967523,1.00229048,2133.4,2132.0,2.07995609]
[1770665967716,0.95658945,2133.5,2132.0,2.07995609]
[1770665968014,1.00226109,2133.4,2132.0,2.07995609]
[1770665968202,2.41682878,2133.6,2132.1,0.90734822]
[1770665968403,1.00201482,2133.5,2132.1,0.90734822]
[1770665968599,1.17177026,2133.6,2132.1,0.90734822]
[1770665968600,1.00201482,2133.4,2132.1,0.90734822]
[1770665968926,1.17177026,2133.6,2132.1,0.90734822]
[1770665969094,1.00201477,2133.5,2132.1,0.90734822]
[1770665969286,1.00201477,2133.4,2132.1,0.90734822]
[1770665969485,1.17177026,2133.6,2132.1,0.90734822]
[1770665969695,1.00188333,2133.5,2132.1,0.90734822]
[1770665969891,1.00188333,2133.4,2132.1,0.90734822]
[1770665970092,1.17177026,2133.6,2132.2,1.17249788]
[1770665970295,1.00187018,2133.5,2132.3,0.90734822]
[1770665970496,3.37324426,2133.9,2132.3,0.90734822]
[1770665970684,1.00153815,2133.8,2132.3,0.90734822]
[1770665970885,1.00153815,2133.7,2132.4,1.14091852]
[1770665971082,2.41655541,2134.1,2132.5,0.90734822]
[1770665971311,1.00141169,2134.0,2132.6,3.277]
[1770665971514,0.05631688,2133.9,2132.6,3.277]
[1770665971717,1.00141169,2133.8,2132.6,3.277]
[1770665972015,0.05631688,2133.9,2132.6,3.277]
[1770665972204,1.22789965,2133.9,2132.7,1.172223]
[1770665972416,0.0012,2133.4,2132.7,1.172223]
[1770665974220,0.0012,2133.4,2132.5,4.68889201]
[1770665976102,0.0012,2133.4,2132.4,1.17233294]
[1770665977331,0.0012,2133.4,2132.4,2.07968116]
[1770665977494,0.0012,2133.4,2132.4,1.17233294]
[1770665981099,0.0012,2133.4,2132.4,2.07968116]
[1770665981697,0.0012,2133.4,2132.5,3.276]
[1770665982122,2.83119904,2134.2,2132.7,0.90734822]
[1770665982326,1.00573344,2134.1,2132.9,2.0794613]
[1770665982559,1.00573344,2134.0,2132.9,2.0794613]
[1770665982833,1.00573344,2133.9,2132.9,2.0794613]
[1770665983035,1.17138864,2134.3,2132.9,2.0794613]
[1770665983210,1.00543721,2134.2,2132.9,2.0794613]
[1770665983402,1.00543721,2134.1,2132.9,2.0794613]
[1770665983596,1.17138864,2134.3,2132.9,2.0794613]
[1770665983794,1.00501498,2134.2,2132.9,2.0794613]
[1770665984009,1.00501498,2134.1,2132.9,2.0794613]
[1770665984339,1.17172853,2133.6,2132.6,1.17227797]
[1770665984837,0.0012,2133.2,2132.6,1.17227797]
[1770665986739,1.17154028,2134.0,2132.6,1.17227797]
[1770665987037,1.00526519,2133.9,2132.6,1.17227797]
[1770665987240,1.00526519,2133.8,2132.6,1.17227797]
[1770665987563,1.00526519,2133.7,2132.6,1.17227797]
[1770665987739,1.22785716,2134.0,2132.6,1.17227797]
[1770665987913,1.00561515,2133.9,2132.6,1.17227797]
[1770665988105,1.00561515,2133.8,2132.6,1.17227797]
[1770665988302,1.00561515,2133.7,2132.6,1.17227797]
[1770665988498,1.00601832,2133.6,2132.6,1.17227797]
[1770665988714,1.1715638,2133.9,2132.6,1.17227797]
[1770665988941,1.00599691,2133.8,2132.6,1.17227797]
[1770665989136,1.00599691,2133.7,2132.6,1.17227797]
[1770665989342,1.00599691,2133.6,2132.6,1.17227797]
[1770665989629,0.9600664,2133.8,2132.6,1.17227797]
[1770665989842,1.00658104,2133.7,2132.6,1.17227797]
[1770665990055,1.00658104,2133.6,2132.6,1.17227797]
[1770665990358,1.00718368,2133.5,2132.6,1.17227797]
[1770665990557,1.17167361,2133.7,2132.6,1.17227797]
[1770665990861,1.00717993,2133.6,2132.6,1.17227797]
[1770665991025,1.17167361,2133.7,2132.6,1.17227797]
[1770665991228,1.00717843,2133.6,2132.6,1.17227797]
[1770665991423,1.00717843,2133.5,2132.6,1.17227797]
[1770665991627,2.83130748,2134.0,2132.7,0.9031468]
[1770665991841,1.00790472,2133.9,2132.7,0.9031468]
[1770665992048,1.00790472,2133.8,2132.7,0.9031468]
[1770665992258,1.00790472,2133.7,2132.7,0.9031468]
[1770665992429,1.00790472,2133.6,2132.7,0.9031468]
[1770665992631,1.00790472,2133.5,2132.9,0.9031468]
[1770665992852,1.65977256,2134.0,2133.0,3.275]
[1770665993058,1.00862533,2133.9,2133.0,3.275]
[1770665993242,3.66109398,2134.2,2133.0,3.275]
[1770665993243,1.00862533,2133.8,2133.0,3.275]
[1770665993455,1.00862533,2133.7,2133.0,3.275]
[1770665993761,1.65977256,2134.1,2133.0,4.1781468]
[1770665993964,1.00943052,2134.0,2133.0,4.1781468]
[1770665994173,1.00943052,2133.9,2133.0,4.1781468]
[1770665994351,1.00943052,2133.8,2133.0,4.1781468]
[1770665994555,2.83117639,2134.2,2133.2,1.17194824]
[1770665994757,1.0095326,2134.1,2133.2,1.17194824]
[1770665994955,1.0095326,2134.0,2133.2,1.17194824]
[1770665995157,1.969599,2133.9,2133.0,3.275]
[1770665995378,1.969599,2133.9,2133.0,4.44703808]
[1770665995379,3.57305468,2133.8,2133.0,4.44703808]
[1770665995555,1.0095326,2133.7,2133.1,1.17200269]
[1770665995750,1.0095326,2133.6,2133.1,1.17200269]
[1770665996073,1.0095326,2133.5,2133.1,1.17200269]
[1770665996370,1.0095326,2133.4,2133.1,1.17200269]
[1770665996564,1.0095326,2133.3,2133.1,1.17200269]
[1770665996771,2.83147227,2133.7,2133.1,1.17200269]
[1770665996958,1.01069378,2133.6,2133.1,1.17200269]
[1770665997278,0.0012,2133.3,2133.1,1.17200269]
[1770665997585,1.65977256,2133.8,2133.1,1.17200269]
[1770665997771,1.01086046,2133.7,2133.1,1.17200269]
[1770665997943,1.01086046,2133.6,2133.1,1.17200269]
[1770665998146,1.65977256,2133.8,2133.1,1.17200269]
[1770665998680,1.65977256,2133.9,2133.1,1.17200269]
[1770665999378,1.65977256,2134.0,2133.1,1.17200269]
[1770665999780,1.65977256,2134.1,2133.1,1.17200269]
[1770666000452,1.65977256,2134.0,2133.1,1.17200269]
[1770666000657,2.56352208,2133.9,2133.1,1.17200269]
[1770666000860,3.73512444,2133.9,2133.1,1.17200269]
[1770666001075,1.65977256,2134.0,2133.1,1.17200269]
[1770666002166,2.83131372,2134.0,2133.1,1.17200269]
[1770666002679,2.61983896,2133.9,2133.0,4.44811507]
[1770666002879,2.56352208,2133.9,2133.0,4.44811507]
[1770666003174,3.73509554,2133.9,2133.0,4.44811507]
[1770666004367,2.61983896,2133.8,2133.0,4.44811507]
[1770666004554,2.56352208,2133.8,2133.0,4.44811507]
[1770666005155,3.39340837,2134.1,2133.0,4.44811507]
[1770666005673,4.56486686,2134.1,2133.0,4.44811507]
[1770666006962,2.07520801,2134.1,2133.0,4.44811507]
[1770666007576,0.90374952,2134.0,2133.0,4.44811507]
[1770666008656,1.17145849,2134.1,2133.0,4.44811507]
[1770666009063,0.0012,2133.8,2133.0,4.44811507]
[1770666009475,0.9600664,2133.7,2133.0,4.44811507]
[1770666009682,0.90374952,2133.7,2133.0,4.44811507]
[1770666010185,1.01147971,2133.6,2133.0,4.44811507]
[1770666010359,1.01147971,2133.5,2133.0,4.44811507]
[1770666010686,1.01147971,2133.4,2133.0,4.44811507]
[1770666010887,0.90374952,2133.7,2133.0,4.44811507]
[1770666011084,1.0115162,2133.6,2133.0,4.44811507]
[1770666011255,1.0115162,2133.5,2133.0,4.44811507]
[1770666011452,1.0115162,2133.4,2133.0,4.44811507]
[1770666011761,1.17174717,2133.6,2133.0,4.44811507]
[1770666011958,1.0115412,2133.5,2133.0,4.44811507]
[1770666012300,1.0115412,2133.4,2133.0,4.44811507]
[1770666012497,1.17174717,2133.6,2133.0,4.44811507]
[1770666012670,1.01149179,2133.5,2133.0,4.44811507]
[1770666012989,1.01149179,2133.4,2133.0,4.44811507]
[1770666013176,1.17174717,2133.6,2133.0,4.44811507]
[1770666013494,1.01164093,2133.5,2133.0,4.44811507]
[1770666013786,1.01164093,2133.4,2133.0,4.44811507]
[1770666013985,1.17173103,2133.6,2133.0,4.44811507]
[1770666014159,1.01164133,2133.5,2133.0,4.44811507]
[1770666014358,1.01164133,2133.4,2133.0,4.44811507]
[1770666014555,1.17173103,2133.6,2133.0,4.44811507]
[1770666014754,1.01162877,2133.5,2133.0,4.44811507]
[1770666014958,1.01162877,2133.4,2133.0,4.44811507]
[1770666015181,1.17173103,2133.6,2133.0,4.44811507]
[1770666015393,0.90374952,2133.2,2132.8,0.0011]
[1770666015599,1.01167471,2133.1,2132.8,0.0011]
[1770666015760,1.01167471,2133.0,2132.8,0.0011]
[1770666015960,1.17189331,2133.3,2132.8,0.0011]
[1770666016159,1.0118164,2133.2,2132.8,0.0011]
[1770666016460,1.0118164,2133.1,2132.8,0.0011]
[1770666016786,1.91556592,2133.0,2132.3,3.2761]
[1770666016994,1.0118164,2132.9,2132.3,3.2761]
[1770666017216,1.91556592,2132.8,2132.3,0.0011]
[1770666017385,1.0118164,2132.7,2132.3,0.0011]
[1770666017558,2.07596197,2132.8,2132.3,0.0011]
[1770666017559,1.0118164,2132.6,2132.3,0.0011]
[1770666017757,2.07596027,2132.8,2132.3,0.0011]
[1770666018074,1.01072779,2132.7,2132.3,0.0011]
[1770666018263,1.01072779,2132.6,2132.3,0.0011]
[1770666018468,0.90374952,2132.8,2132.3,0.0011]
[1770666018677,1.00986862,2132.7,2132.3,0.0011]
[1770666018876,1.00986862,2132.6,2132.3,0.0011]
[1770666019086,2.07592101,2132.8,2132.3,0.0011]
[1770666019269,1.0098687,2132.7,2132.3,0.0011]
[1770666019594,1.00922501,2132.6,2132.3,0.0011]
[1770666019771,2.07594275,2132.8,2132.3,0.0011]
[1770666019971,1.00922861,2132.7,2132.3,0.0011]
[1770666020291,0.94378486,2133.1,2132.3,0.0011]
[1770666020495,0.94378486,2133.0,2132.3,0.0011]
[1770666020686,1.00010174,2133.0,2132.5,0.0011]
[1770666021696,2.11589794,2132.9,2132.5,0.0011]
[1770666024603,0.94378486,2132.8,2132.5,0.0011]
[1770666025607,1.00010174,2132.8,2132.3,0.0011]
[1770666025770,1.00010174,2132.6,2132.0,0.0011]
[1770666026402,0.94378486,2132.6,2132.0,0.0011]
[1770666026604,2.11607167,2132.6,2132.0,0.0011]
[1770666027109,7.17809177,2133.1,2132.0,0.0011]
[1770666027110,2.48965885,2133.3,2132.2,0.92341273]
[1770666027283,2.11660868,2133.8,2132.2,0.92341273]
[1770666027619,0.24489911,2133.5,2132.2,0.92341273]
[1770666027808,2.11660868,2133.8,2132.2,0.92341273]
[1770666027991,2.17292556,2133.8,2132.2,0.92341273]
[1770666028724,2.17292556,2133.8,2132.4,0.92341273]
[1770666029680,0.94378486,2133.3,2132.3,1.1724429]
[1770666029987,0.05631688,2133.2,2132.3,1.1724429]
[1770666030192,0.94378486,2133.3,2132.3,1.1724429]
[1770666030601,2.11572768,2133.3,2132.3,1.1724429]
[1770666031704,2.11569247,2133.3,2132.3,1.1724429]
[1770666031918,1.00010174,2133.2,2132.3,1.1724429]
[1770666032210,1.00668714,2133.1,2132.3,1.1724429]
[1770666032411,1.00010174,2133.2,2132.5,0.0011]
[1770666032591,1.0078791,2133.1,2132.5,0.0011]
[1770666032788,1.17320351,2133.1,2132.5,0.0011]
[1770666032992,0.0012,2133.1,2132.5,0.0011]
[1770666033302,1.17321383,2133.1,2132.5,0.0011]
[1770666035803,1.00714834,2133.0,2132.5,0.0011]
[1770666036005,0.0012,2133.1,2132.5,0.0011]
[1770666036822,0.94378486,2133.0,2132.5,0.0011]
[1770666037021,1.00737972,2132.9,2132.5,0.0011]
[1770666039207,2.17949645,2132.9,2132.5,0.0011]
[1770666039412,1.00737972,2132.8,2132.5,0.0011]
[1770666040317,1.00737972,2132.8,2132.0,1.17365288]
[1770666040318,0.94378486,2132.5,2132.0,0.0011]
[1770666040512,1.00010174,2131.9,2131.1,1.17310035]
[1770666040824,3.33231688,2132.1,2131.1,4.69233254]
[1770666040993,3.276,2132.1,2131.4,1.17403187]
[1770666041193,4.44856441,2132.1,2131.4,1.17403187]
[1770666041397,4.44856441,2132.1,2131.4,0.0011]
[1770666041596,4.50488129,2132.1,2131.4,0.0011]
[1770666044028,1.17227797,2132.7,2131.4,0.92451273]
[1770666044902,1.17227797,2132.7,2131.6,0.92451273]
[1770666045102,1.17347797,2132.7,2131.6,0.92451273]
[1770666045736,1.17347797,2132.7,2131.7,2.09618563]
[1770666046321,0.0012,2132.7,2131.7,2.09618563]
[1770666046526,0.0012,2132.7,2131.8,0.92341273]
[1770666050013,0.0012,2132.7,2131.9,1.17266288]
[1770666052028,0.05631688,2132.4,2131.6,0.0011]
[1770666052211,0.05631688,2132.4,2131.6,1.17389375]
[1770666052411,0.05631688,2132.2,2131.6,1.17389375]
[1770666052926,0.05631688,2132.4,2131.7,1.17277035]
[1770666053114,1.00818087,2132.3,2131.7,1.17277035]
[1770666053439,1.00818087,2132.2,2131.7,1.17277035]
[1770666053632,0.05631688,2132.4,2131.7,1.17277035]
[1770666053936,0.05751688,2132.7,2131.8,1.17270718]
[1770666054233,2.18024772,2132.6,2131.7,4.69087156]
[1770666054438,1.00796975,2132.5,2131.7,4.69087156]
[1770666054639,1.00796975,2132.4,2131.7,4.69087156]
[1770666054815,1.17227797,2132.6,2131.7,4.69087156]
[1770666055125,0.05631688,2132.3,2131.6,0.0011]
[1770666055325,1.00792912,2132.2,2131.6,0.0011]
[1770666055526,0.05631688,2132.1,2131.6,0.0011]
[1770666055732,1.00792912,2132.0,2131.6,0.0011]
[1770666055944,1.01663539,2132.3,2131.6,0.0011]
[1770666056147,1.22886976,2132.1,2131.6,0.0011]
[1770666056317,1.00797881,2132.0,2131.6,0.0011]
[1770666056516,1.00797881,2131.9,2131.6,0.0011]
[1770666056716,1.22886976,2132.1,2131.8,0.0011]
[1770666056941,1.00778288,2132.0,2131.8,0.0011]
[1770666057144,1.00778288,2131.9,2131.8,0.0011]
[1770666057438,1.00778288,2131.9,2131.5,0.0011]
[1770666057658,0.0012,2132.0,2131.5,0.0011]
[1770666057939,0.0012,2132.0,2131.4,0.0011]
[1770666057940,1.06404309,2131.9,2131.4,0.0011]
[1770666058144,1.1727729,2131.7,2131.4,0.0011]
[1770666058443,0.05631688,2131.5,2130.7,1.17441789]
[1770666058749,1.00772621,2131.4,2130.7,1.17441789]
[1770666059120,0.05631688,2131.3,2130.7,1.17441789]
[1770666059647,0.05631688,2131.5,2130.7,1.17441789]
[1770666059949,1.00751881,2131.4,2130.7,1.17441789]
[1770666060167,3.277,2131.6,2130.7,0.0011]
[1770666060371,1.0076764,2131.5,2130.7,0.97915703]
[1770666060517,4.4508401,2132.0,2130.7,0.97915703]
[1770666060719,1.00758582,2131.9,2130.7,0.97915703]
[1770666060939,1.00758582,2131.8,2130.7,0.97915703]
[1770666061153,1.00758582,2131.7,2130.7,0.97915703]
[1770666061352,3.33451688,2132.0,2130.7,0.97915703]
[1770666061353,1.00758582,2131.6,2130.7,0.97915703]
[1770666061513,0.0012,2132.0,2130.7,0.97915703]
[1770666061717,1.00744312,2131.9,2130.7,0.97915703]
[1770666061942,0.0012,2132.0,2130.7,0.97915703]
[1770666062141,1.00740097,2131.9,2130.9,0.97805703]
[1770666062318,0.0012,2132.0,2130.9,0.97805703]
[1770666062516,1.00756669,2131.9,2130.9,0.97805703]
[1770666062728,0.0012,2132.0,2130.9,0.97805703]
[1770666063016,1.00752877,2131.9,2130.9,0.97805703]
[1770666063229,0.0012,2132.0,2130.9,0.97805703]
[1770666064053,0.0012,2132.0,2131.1,0.97805703]
[1770666064254,0.0012,2132.0,2131.3,0.97805703]
[1770666064430,0.0012,2132.0,2131.5,0.97805703]
[1770666065652,0.0012,2132.7,2131.6,0.97805703]
[1770666065863,1.00814639,2132.6,2131.6,0.97805703]
[1770666066149,0.0012,2132.7,2131.6,0.97805703]
[1770666066353,1.00843211,2132.6,2131.8,0.97805703]
[1770666066652,0.0012,2132.7,2131.8,0.97805703]
[1770666067856,1.06469178,2132.6,2131.7,1.1727729]
[1770666068069,1.0083749,2132.5,2131.7,1.1727729]
[1770666068247,1.0083749,2132.5,2131.6,5.66914864]
[1770666068561,0.05751688,2132.7,2131.6,5.66914864]
[1770666068761,0.05751688,2132.7,2131.7,0.97805703]
[1770666068762,1.00863491,2132.6,2131.7,0.97805703]
[1770666069057,0.0012,2132.7,2131.7,0.97805703]
[1770666069230,1.00855791,2132.6,2131.9,0.97805703]
[1770666069423,0.0012,2132.4,2132.0,0.97805703]
[1770666070227,0.0012,2132.4,2132.2,0.97805703]
[1770666070443,0.0012,2132.7,2132.2,0.97805703]
[1770666072356,0.0012,2132.7,2132.3,1.1724429]
[1770666072545,0.0012,2133.1,2132.5,0.97805703]
[1770666072752,0.0012,2133.8,2132.6,0.97805703]
[1770666073038,1.00771702,2133.7,2132.6,0.97805703]
[1770666073243,0.0012,2133.8,2133.0,0.97805703]
[1770666073455,0.0012,2133.8,2133.2,0.97805703]
[1770666073661,4.68409115,2134.9,2133.2,0.97805703]
[1770666073848,0.05631688,2134.6,2133.2,0.97805703]
[1770666074053,1.01663539,2134.8,2133.2,0.97805703]
[1770666074249,1.01663539,2134.8,2133.4,0.97805703]
[1770666074446,0.05631688,2134.8,2133.4,0.97805703]
[1770666074633,1.2273897,2134.8,2133.4,0.97805703]
[1770666075539,0.05631688,2134.6,2133.4,0.97805703]
[1770666075868,0.96031851,2133.8,2133.1,4.68796022]
[1770666076039,0.05631688,2133.7,2133.1,1.17200022]
[1770666076439,0.05631688,2133.7,2132.7,4.68888812]
[1770666076971,0.05631688,2133.7,2132.5,4.68892945]
[1770666076972,0.05631688,2133.3,2132.5,1.1723096]
[1770666077269,0.05631688,2133.3,2132.6,1.1722732]
[1770666077468,0.05631688,2133.5,2132.6,1.1722732]
[1770666078548,1.17148659,2134.1,2132.7,0.97805703]
[1770666078757,1.22774346,2134.2,2132.8,0.97805703]
[1770666080071,0.05631688,2133.8,2132.8,0.97805703]
[1770666080244,0.05631688,2133.5,2132.6,1.1722732]
[1770666080440,1.17176448,2133.6,2132.6,1.1722732]
[1770666080667,0.05631688,2133.5,2132.6,1.1722732]
[1770666081460,0.05631688,2133.7,2132.7,0.91783702]
[1770666081663,1.05312205,2134.0,2132.6,1.1722732]
[1770666081872,0.05631688,2133.8,2132.7,0.91783702]
[1770666082773,0.05631688,2133.8,2132.8,1.17216804]
[1770666083478,0.05631688,2133.8,2132.8,2.09000506]
[1770666083977,1.22794108,2133.8,2132.8,2.09000506]
[1770666084879,0.05631688,2133.4,2132.6,1.17222532]
[1770666087073,0.05631688,2133.2,2132.6,1.17222532]
[1770666087264,0.05631688,2133.2,2132.5,2.09012743]
[1770666087466,0.05631688,2133.2,2132.5,1.17229041]
[1770666088048,0.05631688,2133.2,2132.2,5.60770613]
[1770666088250,0.05631688,2133.0,2132.2,2.09032354]
[1770666088457,0.05631688,2132.5,2131.9,0.0011]
[1770666088662,0.05631688,2132.1,2131.6,0.0011]
[1770666088884,1.17249788,2132.2,2131.6,0.0011]
[1770666089086,0.05631688,2132.1,2131.6,0.0011]
[1770666089459,0.05631688,2131.9,2131.6,0.0011]
[1770666090254,0.05631688,2131.7,2131.6,0.0011]
[1770666090579,0.05631688,2131.9,2131.6,0.0011]
[1770666090778,4.05631688,2131.7,2131.5,0.0011]
[1770666090951,2.16963309,2131.6,2130.8,0.0011]
[1770666091156,0.05631688,2131.4,2130.8,0.0011]
[1770666091579,0.05631688,2131.5,2130.8,0.0011]
[1770666091878,0.05631688,2131.3,2130.8,0.0011]
[1770666092261,4.0,2131.7,2130.8,0.0011]
[1770666092460,5.1727996,2131.7,2130.8,0.0011]
[1770666092774,0.05631688,2131.6,2130.8,0.0011]
[1770666093078,5.22911648,2131.7,2130.8,0.0011]
[1770666093578,5.22909231,2131.7,2130.8,0.0011]
[1770666094380,5.22909231,2131.7,2131.5,0.0011]
[1770666094988,1.05312205,2132.3,2131.5,0.0011]
[1770666094989,1.17264973,2132.0,2131.5,0.0011]
[1770666095456,1.22896661,2132.0,2131.5,0.0011]
[1770666095862,1.22896661,2132.0,2130.8,0.0011]
[1770666095863,0.05631688,2131.6,2130.8,0.0011]
[1770666096300,0.05631688,2131.8,2130.8,0.91893702]
[1770666096585,0.05631688,2131.9,2130.8,0.91893702]
[1770666096787,0.05631688,2132.1,2130.8,0.91893702]
[1770666097017,0.05631688,2133.2,2131.1,0.91783702]
[1770666097018,0.99680517,2132.7,2131.1,0.91783702]
[1770666097156,0.99680517,2132.7,2131.5,0.91783702]
[1770666097558,0.99680517,2132.7,2131.7,0.91783702]
[1770666097794,0.05631688,2132.6,2131.1,0.91783702]
[1770666097983,0.99680517,2132.7,2131.3,0.91783702]
[1770666098288,0.99680517,2132.7,2131.5,0.91783702]
[1770666098488,2.22535387,2132.7,2131.5,0.91783702]
[1770666098986,1.05312205,2132.7,2131.6,1.17282792]
[1770666099173,0.05631688,2132.7,2131.6,2.09066494]
[1770666099373,0.05631688,2132.5,2131.6,2.09066494]
[1770666100092,0.05631688,2132.0,2131.5,1.17285219]
[1770666101215,3.277,2132.5,2131.3,2.09083002]
[1770666101496,3.33331688,2133.0,2131.4,0.91783702]
[1770666101666,0.05631688,2132.8,2131.4,0.91783702]
[1770666101867,3.33331688,2133.0,2131.4,0.91783702]
[1770666102067,0.05631688,2132.8,2131.4,0.91783702]
[1770666102462,0.05631688,2132.1,2131.3,1.172993]
[1770666102668,0.05631688,2132.8,2131.4,0.91783702]
[1770666102976,0.05631688,2132.9,2131.4,0.91783702]
[1770666103165,1.22839248,2133.0,2131.6,0.91783702]
[1770666103365,0.05631688,2133.2,2131.7,0.91783702]
[1770666103600,0.05631688,2133.0,2131.7,0.91783702]
[1770666103898,0.05631688,2133.2,2131.7,0.91783702]
[1770666104097,0.05631688,2133.0,2131.7,0.91783702]
[1770666104601,0.05631688,2133.2,2131.7,0.91783702]
[1770666104771,0.05631688,2133.0,2131.7,0.91783702]
[1770666104972,0.05631688,2132.6,2131.7,0.91783702]
[1770666105200,0.05631688,2132.6,2131.8,1.17271789]
[1770666105690,1.22860289,2132.6,2131.8,1.17271789]
[1770666106266,0.05631688,2132.4,2131.7,1.17276671]
[1770666106468,0.05631688,2132.4,2131.6,4.69118329]
[1770666106672,0.05631688,2132.4,2131.7,1.17277045]
[1770666107576,0.05631688,2132.2,2131.4,1.17293797]
[1770666108669,4.68919336,2132.6,2131.4,1.17293797]
[1770666108867,1.00307515,2132.5,2131.5,0.91783702]
[1770666109093,1.22859485,2132.6,2131.5,0.91783702]
[1770666109293,1.0035004,2132.5,2131.5,0.91783702]
[1770666109502,1.17226686,2132.7,2131.7,0.97374679]
[1770666109676,1.00349554,2132.6,2131.7,0.97374679]
[1770666109879,1.17226686,2132.7,2131.7,0.97374679]
[1770666110218,1.00349532,2132.6,2131.7,0.97374679]
[1770666110372,1.00349532,2132.5,2131.7,0.97374679]
[1770666110579,0.0012,2132.8,2131.7,0.97374679]
[1770666110884,0.0012,2132.8,2131.8,0.97374679]
[1770666111683,0.0012,2132.8,2132.0,0.97374679]
[1770666114099,0.0012,2132.8,2132.1,1.17255288]
[1770666116181,0.0012,2132.8,2132.0,4.69021152]
[1770666117085,0.0012,2132.8,2132.0,5.66395831]
[1770666118803,0.0012,2132.6,2132.0,5.66395831]
[1770666119111,0.0012,2132.6,2132.1,0.97374679]
[1770666120405,0.0012,2132.6,2132.2,2.14624467]
[1770666121795,0.0012,2132.8,2132.3,0.97374679]
[1770666121992,3.277,2133.5,2132.4,0.97374679]
[1770666122191,0.0012,2133.6,2132.6,0.97374679]
[1770666122415,0.0012,2133.6,2132.8,0.97374679]
[1770666122613,0.05631688,2133.5,2132.8,0.97374679]
[1770666122788,0.0012,2133.6,2132.7,1.172223]
[1770666123816,0.05631688,2133.5,2132.7,1.172223]
[1770666124497,1.17183838,2133.4,2132.6,4.68889201]
[1770666125620,0.05631688,2132.9,2132.2,1.17247324]
[1770666125793,0.05631688,2132.9,2132.3,1.17244196]
[1770666126114,0.05631688,2133.1,2132.4,1.17237988]
[1770666126623,1.17205813,2133.0,2132.1,0.97374679]
[1770666126787,0.05631688,2133.0,2132.1,0.97374679]
[1770666128489,0.05631688,2133.5,2132.5,5.66285867]
[1770666128690,0.0012,2133.6,2132.6,1.17227797]
[1770666128914,0.0012,2133.6,2132.7,0.97374679]
[1770666129810,0.05631688,2133.5,2132.6,1.17227797]
[1770666130119,0.05631688,2132.7,2132.0,1.1725866]
[1770666130415,0.05631688,2132.9,2132.2,1.17248899]